[Event "HUN-chT 2017-18"]
[Site "Budapest"]
[Date "2018.05.05"]
[Round "8"]
[White "Popovics, Adam"]
[Black "Hajnal, Zoltan"]
[Result "1/2-1/2"]
[ECO "A06"]
[WhiteElo "2382"]
[BlackElo "2397"]
[Annotator "NA"]
[PlyCount "81"]
[EventDate "2018.??.??"]
[EventType "team-tourn"]
[EventCountry "HUN"]
[SourceTitle "playchess.com"]
[Source "ChessBase"]
[SourceQuality "1"]
[TimeControl "40/5400+30:1800+30"]

1. Nf3 {[%emt 0:00:07]} d5 {[%emt 0:00:42]} 2. c4 {[%emt 0:00:31]} c6 {[%emt 0:00:12]} 3. e3 {[%emt 0:00:11]} Nf6 {[%emt 0:00:09]} 4. Nc3 {[%emt 0:00:06]} Bf5 {[%emt 0:00:19]} 5. cxd5 {[%emt 0:00:23]} cxd5 {[%emt 0:00:06]} 6. Qb3 {[%emt 0:00:07]} Bc8 {[%emt 0:00:12]} 7. d4 {[%emt 0:00:35]} Nc6 {[%emt 0:00:06]} 8. Bd3 {[%emt 0:01:49]} e6 {[%emt 0:00:07]} 9. O-O {[%emt 0:00:37]} Bd6 {[%emt 0:02:25]} 10. e4 {[%emt 0:11:39]} dxe4 {[%emt 0:02:35]} 11. Nxe4 {[%emt 0:00:06]} Be7 {[%emt 0:01:04]} 12. Bg5 {[%emt 0:08:06]} O-O {[%emt 0:03:36]} 13. Rad1 {[%emt 0:11:28]} Nd5 {[%emt 0:36:11]} 14. Bb1 {[%emt 0:07:04]} h6 {[%emt 0:03:31]} 15. Be3 {[%emt 0:04:59]} Qb6 {[%emt 0:22:41]} 16. Qc2 {[%emt 0:03:32]} Ncb4 {[%emt 0:02:39]} 17. Qd2 {[%emt 0:06:38]} Rd8 {[%emt 0:13:33]} 18. Ne5 {[%emt 0:18:13]} f5 {[%emt 0:01:54]} 19. Nc3 {[%emt 0:02:49]} Bf6 {[%emt 0:00:55]} 20. a3 {[%emt 0:05:02]} Nxe3 {[%emt 0:04:22]} 21. Qxe3 {[%emt 0:00:08]} Nc6 {[%emt 0:00:44]} 22. Nxc6 {[%emt 0:04:34]} bxc6 {[%emt 0:00:08]} 23. Na4 {[%emt 0:02:30]} Qb5 {[%emt 0:00:09]} 24. Bc2 {[%emt 0:01:14]} Rd6 {[%emt 0:00:25]} 25. Rfe1 {[%emt 0:00:52]} Bd7 {[%emt 0:02:21]} 26. Qf4 {[%emt 0:01:31]} e5 {[%emt 0:00:45]} 27. dxe5 {[%emt 0:02:17]} Rxd1 {[%emt 0:00:05]} 28. Rxd1 {[%emt 0:01:41]} Bxe5 {[%emt 0:00:05]} 29. Qe3 {[%emt 0:01:15]} Re8 {[%emt 0:01:58]} 30. Qxa7 {[%emt 0:02:05]} Bc8 {[%emt 0:00:37]} 31. Qb6 {[%emt 0:02:17]} Qxb6 {[%emt 0:00:43]} 32. Nxb6 {[%emt 0:00:05]} Bxb2 {[%emt 0:00:04]} 33. Nxc8 {[%emt 0:00:50]} Rxc8 {[%emt 0:00:04]} 34. a4 {[%emt 0:00:27]} Ra8 {[%emt 0:00:58]} 35. Rd7 {[%emt 0:00:56]} Kf8 {[%emt 0:00:48]} 36. Kf1 {[%emt 0:00:25]} c5 {[%emt 0:00:31]} 37. Rd5 {[%emt 0:00:22]} Bd4 {[%emt 0:00:13]} 38. Rxf5+ {[%emt 0:00:14]} Ke7 {[%emt 0:00:06]} 39. Ke2 {[%emt 0:00:30]} Ke6 {[%emt 0:00:22]} 40. Rf3 {[%emt 0:00:00]} Kd5 {[%emt 0:00:17]} 41. Kd2 {[%emt 0:07:58]} 1/2-1/2

[Event "HUN-chT 2017-18"]
[Site "Budapest"]
[Date "2018.05.05"]
[Round "8"]
[White "Csonka, Attila Istvan"]
[Black "Erdelyi, Zombor"]
[Result "0-1"]
[ECO "B40"]
[WhiteElo "2372"]
[BlackElo "2310"]
[Annotator "NA"]
[PlyCount "130"]
[EventDate "2018.??.??"]
[EventType "team-tourn"]
[EventCountry "HUN"]
[SourceTitle "playchess.com"]
[Source "ChessBase"]
[SourceQuality "1"]
[TimeControl "40/5400+30:1800+30"]

1. e4 {[%emt 0:00:24]} c5 {[%emt 0:00:27]} 2. Nf3 {[%emt 0:00:10]} e6 {[%emt 0:00:09]} 3. b3 {[%emt 0:00:36]} Nc6 {[%emt 0:00:15]} 4. Bb2 {[%emt 0:00:08]} a6 {[%emt 0:00:33]} 5. d4 {[%emt 0:03:42]} cxd4 {[%emt 0:00:07]} 6. Nxd4 {[%emt 0:00:08]} Qf6 {[%emt 0:00:29]} 7. c3 {[%emt 0:00:56]} Bc5 {[%emt 0:00:18]} 8. Be2 {[%emt 0:00:38]} Nge7 {[%emt 0:00:15]} 9. O-O {[%emt 0:01:12]} O-O {[%emt 0:00:52]} 10. Nxc6 {[%emt 0:08:49]} dxc6 {[%emt 0:02:34]} 11. Qc2 {[%emt 0:03:20]} e5 {[%emt 0:03:16]} 12. b4 {[%emt 0:06:37]} Ba7 {[%emt 0:00:35]} 13. c4 {[%emt 0:02:35]} Ng6 {[%emt 0:00:27]} 14. c5 {[%emt 0:02:46]} Nf4 {[%emt 0:02:42]} 15. Bc1 {[%emt 0:10:11]} Be6 {[%emt 0:22:53]} 16. Bxf4 {[%emt 0:01:31]} exf4 {[%emt 0:00:13]} 17. Nd2 {[%emt 0:00:10]} Rad8 {[%emt 0:01:30]} 18. Rfd1 {[%emt 0:05:37]} Bb8 {[%emt 0:03:13]} 19. Nf3 {[%emt 0:04:39]} g5 {[%emt 0:04:27]} 20. h3 {[%emt 0:04:31]} h5 {[%emt 0:03:01]} 21. e5 {[%emt 0:08:24]} Qg7 {[%emt 0:01:25]} 22. Rxd8 {[%emt 0:01:14]} Rxd8 {[%emt 0:00:01]} 23. Rd1 {[%emt 0:00:08]} Rxd1+ {[%emt 0:05:41]} 24. Qxd1 {[%emt 0:00:33]} Bc7 {[%emt 0:00:29]} 25. Nd4 {[%emt 0:03:43]} Bxa2 {[%emt 0:02:49]} 26. e6 {[%emt 0:01:05]} fxe6 {[%emt 0:03:44]} 27. Bxh5 {[%emt 0:01:06]} Be5 {[%emt 0:05:08]} 28. Nb3 {[%emt 0:02:46]} Bc7 {[%emt 0:06:30]} 29. Bg4 {[%emt 0:03:21]} Qe5 {[%emt 0:03:17]} 30. Nd4 {[%emt 0:10:38]} Bd5 {[%emt 0:01:29]} 31. Bf3 {[%emt 0:01:32]} Bd8 {[%emt 0:01:47]} 32. Qd3 {[%emt 0:02:33]} Kf8 {[%emt 0:08:57]} 33. Bxd5 {[%emt 0:02:04]} exd5 {[%emt 0:01:53]} 34. Nf3 {[%emt 0:02:04]} Qe4 {[%emt 0:01:37]} 35. Qxe4 {[%emt 0:01:10]} dxe4 {[%emt 0:00:07]} 36. Nd2 {[%emt 0:00:02]} Ke7 {[%emt 0:05:24]} 37. Nxe4 {[%emt 0:00:39]} Ke6 {[%emt 0:00:09]} 38. Kf1 {[%emt 0:01:03]} Kd5 {[%emt 0:00:07]} 39. Nd6 {[%emt 0:02:22]} b5 {[%emt 0:00:00]} 40. Ke2 {[%emt 0:00:00]} Bc7 {[%emt 0:09:17]} 41. g3 {[%emt 0:09:30]} fxg3 {[%emt 0:08:45]} 42. fxg3 {[%emt 0:00:31]} Kd4 {[%emt 0:00:49]} 43. h4 {[%emt 0:11:57]} gxh4 {[%emt 0:00:25]} 44. gxh4 {[%emt 0:00:03]} Bd8 {[%emt 0:03:33]} 45. h5 {[%emt 0:01:46]} Bg5 {[%emt 0:05:27]} 46. Kd1 {[%emt 0:01:36]} Kd3 {[%emt 0:00:56]} 47. Nf7 {[%emt 0:06:06]} Bf6 {[%emt 0:00:45]} 48. h6 {[%emt 0:00:20]} Kc3 {[%emt 0:00:38]} 49. h7 {[%emt 0:00:09]} Kxb4 {[%emt 0:00:08]} 50. h8=Q {[%emt 0:00:52]} Bxh8 {[%emt 0:00:04]} 51. Nxh8 {[%emt 0:00:04]} Kxc5 {[%emt 0:00:16]} 52. Kc2 {[%emt 0:00:25]} Kd4 {[%emt 0:01:17]} 53. Ng6 {[%emt 0:00:39]} c5 {[%emt 0:00:48]} 54. Ne7 {[%emt 0:00:51]} c4 {[%emt 0:00:14]} 55. Nc6+ {[%emt 0:00:30]} Kc5 {[%emt 0:00:13]} 56. Nd8 {[%emt 0:01:06]} a5 {[%emt 0:00:32]} 57. Ne6+ {[%emt 0:00:42]} Kb4 {[%emt 0:02:53]} 58. Nc7 {[%emt 0:03:06]} a4 {[%emt 0:00:11]} 59. Na6+ {[%emt 0:00:14]} Ka5 {[%emt 0:00:11]} 60. Nb8 {[%emt 0:00:07]} b4 {[%emt 0:00:19]} 61. Kb2 {[%emt 0:01:07]} a3+ {[%emt 0:03:25]} 62. Kc2 {[%emt 0:01:26]} Kb5 {[%emt 0:00:20]} 63. Nd7 {[%emt 0:00:09]} b3+ {[%emt 0:00:16]} 64. Kc3 {[%emt 0:00:04]} a2 {[%emt 0:00:06]} 65. Kb2 {[%emt 0:00:10]} c3+ {[%emt 0:00:06]} 0-1

[Event "HUN-chT 2017-18"]
[Site "Budapest"]
[Date "2018.05.05"]
[Round "8"]
[White "Tatar Kis, Szabolcs"]
[Black "Farago, Ivan"]
[Result "1/2-1/2"]
[ECO "C00"]
[WhiteElo "2372"]
[BlackElo "2373"]
[Annotator "NA"]
[PlyCount "120"]
[EventDate "2018.??.??"]
[EventType "team-tourn"]
[EventCountry "HUN"]
[SourceTitle "playchess.com"]
[Source "ChessBase"]
[SourceQuality "1"]
[TimeControl "40/5400+30:1800+30"]

1. e4 {[%emt 0:03:09]} e6 {[%emt 0:00:57]} 2. d4 {[%emt 0:00:08]} d5 {[%emt 0:00:06]} 3. Bd3 {[%emt 0:00:58]} dxe4 {[%emt 0:06:06]} 4. Bxe4 {[%emt 0:00:08]} Nf6 {[%emt 0:00:34]} 5. Bf3 {[%emt 0:00:23]} c5 {[%emt 0:01:07]} 6. Ne2 {[%emt 0:00:57]} Be7 {[%emt 0:13:39]} 7. Nbc3 {[%emt 0:07:13]} Nc6 {[%emt 0:01:50]} 8. Be3 {[%emt 0:01:18]} cxd4 {[%emt 0:10:21]} 9. Nxd4 {[%emt 0:01:38]} Ne5 {[%emt 0:04:53]} 10. Ndb5 {[%emt 0:08:27]} Qa5 {[%emt 0:06:18]} 11. Nd6+ {[%emt 0:13:16]} Bxd6 {[%emt 0:00:42]} 12. Qxd6 {[%emt 0:00:15]} Nxf3+ {[%emt 0:02:14]} 13. gxf3 {[%emt 0:00:12]} Bd7 {[%emt 0:00:29]} 14. Rg1 {[%emt 0:07:30]} O-O-O {[%emt 0:01:08]} 15. Rg5 {[%emt 0:20:23]} Qc7 {[%emt 0:11:10]} 16. Qxc7+ {[%emt 0:08:38]} Kxc7 {[%emt 0:00:07]} 17. Bf4+ {[%emt 0:00:29]} Kb6 {[%emt 0:16:03]} 18. Rd1 {[%emt 0:04:15]} Bc6 {[%emt 0:01:34]} 19. Rxd8 {[%emt 0:01:11]} Rxd8 {[%emt 0:00:06]} 20. Rxg7 {[%emt 0:00:21]} Rd7 {[%emt 0:02:56]} 21. Ke2 {[%emt 0:00:54]} h5 {[%emt 0:05:30]} 22. b3 {[%emt 0:02:41]} Nd5 {[%emt 0:07:51]} 23. Nxd5+ {[%emt 0:01:29]} exd5 {[%emt 0:00:05]} 24. Rh7 {[%emt 0:07:16]} d4 {[%emt 0:00:36]} 25. Rxh5 {[%emt 0:00:41]} Re7+ {[%emt 0:00:37]} 26. Re5 {[%emt 0:02:23]} Rxe5+ {[%emt 0:00:29]} 27. Bxe5 {[%emt 0:00:02]} Bb5+ {[%emt 0:01:23]} 28. c4 {[%emt 0:02:37]} dxc3+ {[%emt 0:00:14]} 29. Kd1 {[%emt 0:00:13]} Bd3 {[%emt 0:01:52]} 30. Bxc3 {[%emt 0:00:28]} Kc5 {[%emt 0:00:17]} 31. Kd2 {[%emt 0:00:44]} Bb1 {[%emt 0:00:28]} 32. a3 {[%emt 0:00:24]} Kd5 {[%emt 0:00:10]} 33. h4 {[%emt 0:01:19]} Bg6 {[%emt 0:01:37]} 34. Ke3 {[%emt 0:01:34]} Ke6 {[%emt 0:00:31]} 35. Kd4 {[%emt 0:00:51]} Bh5 {[%emt 0:01:04]} 36. Ke4 {[%emt 0:00:25]} a6 {[%emt 0:00:52]} 37. a4 {[%emt 0:01:06]} f6 {[%emt 0:00:50]} 38. a5 {[%emt 0:00:24]} Bg6+ {[%emt 0:00:20]} 39. Kf4 {[%emt 0:00:14]} Bh5 {[%emt 0:00:12]} 40. Ke4 {[%emt 0:00:00]} Bg6+ {[%emt 0:00:22]} 41. Kd4 {[%emt 0:02:30]} Bh5 {[%emt 0:01:00]} 42. Ke4 {[%emt 0:06:14]} Bg6+ {[%emt 0:02:51]} 43. Kf4 {[%emt 0:00:09]} Bc2 {[%emt 0:08:49]} 44. b4 {[%emt 0:02:23]} Bg6 {[%emt 0:01:32]} 45. Kg4 {[%emt 0:00:22]} Kf7 {[%emt 0:03:45]} 46. h5 {[%emt 0:00:48]} Bh7 {[%emt 0:00:19]} 47. Kf4 {[%emt 0:06:01]} Bc2 {[%emt 0:01:12]} 48. Bd2 {[%emt 0:03:02]} Kg7 {[%emt 0:03:31]} 49. Kg4 {[%emt 0:00:47]} Kf7 {[%emt 0:00:50]} 50. Bh6 {[%emt 0:00:20]} Bd1 {[%emt 0:00:47]} 51. Kf4 {[%emt 0:00:19]} Bc2 {[%emt 0:01:55]} 52. Ke3 {[%emt 0:00:19]} Bd1 {[%emt 0:00:49]} 53. Bf4 {[%emt 0:03:35]} Kg7 {[%emt 0:00:22]} 54. Ke4 {[%emt 0:00:47]} Bc2+ {[%emt 0:00:21]} 55. Kd5 {[%emt 0:01:39]} Bd1 {[%emt 0:00:17]} 56. Ke6 {[%emt 0:00:48]} Bxf3 {[%emt 0:00:28]} 57. h6+ {[%emt 0:00:17]} Kg6 {[%emt 0:00:05]} 58. Bd2 {[%emt 0:00:37]} Bg4+ {[%emt 0:00:42]} 59. Ke7 {[%emt 0:00:16]} Bf3 {[%emt 0:00:41]} 60. Bc1 {[%emt 0:00:30]} f5 {[%emt 0:01:03]} 1/2-1/2

[Event "HUN-chT 2017-18"]
[Site "Budapest"]
[Date "2018.05.05"]
[Round "8"]
[White "Gara, Ticia"]
[Black "Mokcsay, Robert"]
[Result "1/2-1/2"]
[ECO "A06"]
[WhiteElo "2369"]
[BlackElo "2226"]
[Annotator "ChessBase"]
[PlyCount "119"]
[EventDate "2018.??.??"]
[EventType "team-tourn"]
[EventCountry "HUN"]
[SourceTitle "playchess.com"]
[Source "ChessBase"]
[SourceQuality "1"]
[TimeControl "40/5400+30:1800+30"]

1. Nf3 {[%emt 0:00:03]} d5 {[%emt 0:00:53]} 2. g3 {[%emt 0:00:14]} g6 {[%emt 0:01:43]} 3. Bg2 {[%emt 0:00:26]} Bg7 {[%emt 0:00:35]} 4. d4 {[%emt 0:00:05]} Nf6 {[%emt 0:03:34]} 5. c4 {[%emt 0:01:23]} c6 {[%emt 0:00:16]} 6. cxd5 {[%emt 0:00:23]} cxd5 {[%emt 0:00:12]} 7. Nc3 {[%emt 0:00:05]} O-O {[%emt 0:00:50]} 8. Ne5 {[%emt 0:01:06]} Nc6 {[%emt 0:03:46]} 9. Nxc6 {[%emt 0:01:29]} bxc6 {[%emt 0:03:37]} 10. O-O {[%emt 0:01:01]} Ne8 {[%emt 0:07:04]} 11. b3 {[%emt 0:09:35]} Nd6 {[%emt 0:15:08]} 12. Bb2 {[%emt 0:02:09]} e5 {[%emt 0:03:46]} 13. dxe5 {[%emt 0:06:53]} Bxe5 {[%emt 0:00:07]} 14. Na4 {[%emt 0:00:22]} Bxb2 {[%emt 0:05:08]} 15. Nxb2 {[%emt 0:00:04]} Re8 {[%emt 0:00:05]} 16. Qc2 {[%emt 0:06:09]} Bd7 {[%emt 0:14:41]} 17. Na4 {[%emt 0:01:42]} Rc8 {[%emt 0:01:25]} 18. e3 {[%emt 0:04:27]} Bf5 {[%emt 0:01:21]} 19. Qc5 {[%emt 0:04:26]} Qd7 {[%emt 0:00:53]} 20. Qd4 {[%emt 0:09:25]} Nb5 {[%emt 0:09:11]} 21. Qb4 {[%emt 0:13:12]} Bh3 {[%emt 0:01:21]} 22. Nc5 {[%emt 0:01:58]} Qf5 {[%emt 0:00:13]} 23. Qf4 {[%emt 0:07:58]} Qxf4 {[%emt 0:05:01]} 24. gxf4 {[%emt 0:00:04]} Bxg2 {[%emt 0:00:04]} 25. Kxg2 {[%emt 0:00:01]} d4 {[%emt 0:03:31]} 26. Kf3 {[%emt 0:07:10]} dxe3 {[%emt 0:01:48]} 27. fxe3 {[%emt 0:00:03]} f5 {[%emt 0:00:09]} 28. Nd7 {[%emt 0:06:44]} Red8 {[%emt 0:02:12]} 29. Rfd1 {[%emt 0:01:15]} Nc3 {[%emt 0:01:40]} 30. Rd3 {[%emt 0:06:22]} Ne4 {[%emt 0:00:38]} 31. Rad1 {[%emt 0:01:16]} Kg7 {[%emt 0:00:24]} 32. Ne5 {[%emt 0:00:36]} Rxd3 {[%emt 0:00:15]} 33. Rxd3 {[%emt 0:00:03]} Rc7 {[%emt 0:00:06]} 34. Rd8 {[%emt 0:02:20]} Kf6 {[%emt 0:01:42]} 35. h4 {[%emt 0:00:55]} c5 {[%emt 0:03:45]} 36. Rf8+ {[%emt 0:02:26]} Ke6 {[%emt 0:00:41]} 37. Re8+ {[%emt 0:00:42]} Kf6 {[%emt 0:00:36]} 38. Rd8 {[%emt 0:01:19]} Ke6 {[%emt 0:00:24]} 39. Rd1 {[%emt 0:01:29]} Nf6 {[%emt 0:07:50]} 40. Rc1 {[%emt 0:00:00]} Ne4 {[%emt 0:00:53]} 41. Ke2 {[%emt 0:04:09]} Rb7 {[%emt 0:04:17]} 42. Nf3 {[%emt 0:05:22]} Re7 {[%emt 0:06:05]} 43. Ng5+ {[%emt 0:05:59]} Nxg5 {[%emt 0:02:59]} 44. hxg5 {[%emt 0:00:12]} Kd5 {[%emt 0:00:04]} 45. Rd1+ {[%emt 0:01:24]} Kc6 {[%emt 0:00:16]} 46. Rd8 {[%emt 0:00:30]} Kc7 {[%emt 0:00:33]} 47. Rf8 {[%emt 0:02:03]} Kc6 {[%emt 0:01:00]} 48. Rf6+ {[%emt 0:01:45]} Kb5 {[%emt 0:00:16]} 49. Kd3 {[%emt 0:06:18]} Kb4 {[%emt 0:00:41]} 50. Rd6 {[%emt 0:03:01]} Ka3 {[%emt 0:09:22]} 51. Ra6+ {[%emt 0:00:21]} Kb4 {[%emt 0:00:19]} 52. Ra4+ {[%emt 0:01:58]} Kb5 {[%emt 0:00:13]} 53. e4 {[%emt 0:01:45]} fxe4+ {[%emt 0:10:03]} 54. Rxe4 {[%emt 0:00:08]} Rf7 {[%emt 0:00:24]} 55. a4+ {[%emt 0:01:39]} Kc6 {[%emt 0:00:20]} 56. Kc4 {[%emt 0:00:42]} Kd6 {[%emt 0:00:14]} 57. Kd3 {[%emt 0:01:40]} Rb7 {[%emt 0:00:39]} 58. Kc3 {[%emt 0:00:12]} Kd5 {[%emt 0:00:16]} 59. Re5+ {[%emt 0:00:28]} Kd6 {[%emt 0:00:05]} 60. Re4 {[%emt 0:00:39]} 1/2-1/2

[Event "HUN-chT 2017-18"]
[Site "Budapest"]
[Date "2018.05.05"]
[Round "8"]
[White "Horvath, Zsolt"]
[Black "Tompa, Janos"]
[Result "1/2-1/2"]
[ECO "B40"]
[WhiteElo "2369"]
[BlackElo "2372"]
[Annotator "NA"]
[PlyCount "57"]
[EventDate "2018.??.??"]
[EventType "team-tourn"]
[EventCountry "HUN"]
[SourceTitle "playchess.com"]
[Source "ChessBase"]
[SourceQuality "1"]
[TimeControl "40/5400+30:1800+30"]

1. e4 {[%emt 0:00:04]} c5 {[%emt 0:01:00]} 2. Nf3 {[%emt 0:00:12]} e6 {[%emt 0:00:24]} 3. g3 {[%emt 0:00:33]} d5 {[%emt 0:01:08]} 4. exd5 {[%emt 0:02:32]} Qxd5 {[%emt 0:00:07]} 5. Nc3 {[%emt 0:01:51]} Qd8 {[%emt 0:00:09]} 6. d4 {[%emt 0:03:11]} Nf6 {[%emt 0:00:58]} 7. Bg2 {[%emt 0:05:21]} Nc6 {[%emt 0:01:49]} 8. Be3 {[%emt 0:10:29]} Ng4 {[%emt 0:06:03]} 9. O-O {[%emt 0:04:38]} Nxe3 {[%emt 0:00:49]} 10. fxe3 {[%emt 0:00:05]} Be7 {[%emt 0:00:34]} 11. Ne4 {[%emt 0:03:15]} Qa5 {[%emt 0:11:06]} 12. Nfg5 {[%emt 0:14:20]} cxd4 {[%emt 0:04:05]} 13. Nxf7 {[%emt 0:10:27]} O-O {[%emt 0:00:45]} 14. Nfd6 {[%emt 0:06:22]} Qe5 {[%emt 0:31:12]} 15. Rxf8+ {[%emt 0:03:44]} Bxf8 {[%emt 0:00:41]} 16. exd4 {[%emt 0:06:55]} Qxd4+ {[%emt 0:01:28]} 17. Qxd4 {[%emt 0:00:08]} Nxd4 {[%emt 0:00:04]} 18. Rd1 {[%emt 0:01:53]} Nf5 {[%emt 0:07:44]} 19. Kf2 {[%emt 0:05:47]} Be7 {[%emt 0:07:51]} 20. c3 {[%emt 0:01:23]} Kf8 {[%emt 0:05:07]} 21. Nxc8 {[%emt 0:08:04]} Rxc8 {[%emt 0:00:09]} 22. g4 {[%emt 0:00:23]} Nh6 {[%emt 0:04:44]} 23. h3 {[%emt 0:02:10]} Rc7 {[%emt 0:00:27]} 24. Nd2 {[%emt 0:02:22]} Bc5+ {[%emt 0:03:02]} 25. Ke2 {[%emt 0:00:10]} Nf7 {[%emt 0:00:49]} 26. Nb3 {[%emt 0:00:20]} Bb6 {[%emt 0:00:35]} 27. Nd4 {[%emt 0:01:05]} Bxd4 {[%emt 0:00:21]} 28. Rxd4 {[%emt 0:00:04]} Ke7 {[%emt 0:00:38]} 29. c4 {[%emt 0:03:58]} 1/2-1/2

[Event "HUN-chT 2017-18"]
[Site "Budapest"]
[Date "2018.05.05"]
[Round "8"]
[White "Lazarne Vajda, Szidonia"]
[Black "Kovacsy, Barnabas"]
[Result "1-0"]
[ECO "D78"]
[WhiteElo "2361"]
[BlackElo "2059"]
[Annotator "NA"]
[PlyCount "69"]
[EventDate "2018.??.??"]
[EventType "team-tourn"]
[EventCountry "HUN"]
[SourceTitle "playchess.com"]
[Source "ChessBase"]
[SourceQuality "1"]
[TimeControl "40/5400+30:1800+30"]

1. d4 {[%emt 0:00:05]} Nf6 {[%emt 0:00:36]} 2. Nf3 {[%emt 0:00:25]} g6 {[%emt 0:00:11]} 3. g3 {[%emt 0:00:48]} Bg7 {[%emt 0:01:14]} 4. Bg2 {[%emt 0:00:18]} O-O {[%emt 0:00:20]} 5. c4 {[%emt 0:00:58]} d5 {[%emt 0:01:24]} 6. O-O {[%emt 0:00:28]} c6 {[%emt 0:02:11]} 7. Qb3 {[%emt 0:03:12]} Qb6 {[%emt 0:05:40]} 8. Nc3 {[%emt 0:01:14]} dxc4 {[%emt 0:07:26]} 9. Qxc4 {[%emt 0:01:11]} Nbd7 {[%emt 0:04:47]} 10. Rd1 {[%emt 0:03:18]} Qa5 {[%emt 0:08:39]} 11. Bg5 {[%emt 0:05:07]} Re8 {[%emt 0:04:11]} 12. b4 {[%emt 0:04:32]} Qb6 {[%emt 0:05:06]} 13. e4 {[%emt 0:05:44]} e5 {[%emt 0:09:46]} 14. Bxf6 {[%emt 0:01:51]} Bxf6 {[%emt 0:02:16]} 15. d5 {[%emt 0:00:09]} c5 {[%emt 0:07:51]} 16. a3 {[%emt 0:03:36]} cxb4 {[%emt 0:04:11]} 17. axb4 {[%emt 0:00:06]} Be7 {[%emt 0:00:42]} 18. Nb5 {[%emt 0:08:42]} Bd6 {[%emt 0:01:55]} 19. Nd2 {[%emt 0:01:45]} a6 {[%emt 0:02:16]} 20. Nxd6 {[%emt 0:00:36]} Qxd6 {[%emt 0:00:03]} 21. Nb3 {[%emt 0:04:54]} Rd8 {[%emt 0:11:59]} 22. Rdc1 {[%emt 0:04:52]} f5 {[%emt 0:03:24]} 23. Nc5 {[%emt 0:01:43]} b5 {[%emt 0:01:25]} 24. Qb3 {[%emt 0:04:10]} Nf8 {[%emt 0:04:13]} 25. Rc2 {[%emt 0:03:25]} Ra7 {[%emt 0:02:09]} 26. Rca2 {[%emt 0:00:41]} Kg7 {[%emt 0:01:06]} 27. Qe3 {[%emt 0:01:36]} Ra8 {[%emt 0:01:33]} 28. f3 {[%emt 0:09:30]} Re8 {[%emt 0:02:18]} 29. Bf1 {[%emt 0:00:28]} Bd7 {[%emt 0:01:17]} 30. Rxa6 {[%emt 0:00:31]} Rxa6 {[%emt 0:00:05]} 31. Rxa6 {[%emt 0:00:04]} Qb8 {[%emt 0:00:43]} 32. Nxd7 {[%emt 0:00:53]} Nxd7 {[%emt 0:00:20]} 33. Qa7 {[%emt 0:00:08]} Qxa7+ {[%emt 0:01:19]} 34. Rxa7 {[%emt 0:00:05]} Rd8 {[%emt 0:00:35]} 35. Bxb5 {[%emt 0:00:05]} 1-0

[Event "HUN-chT 2017-18"]
[Site "Budapest"]
[Date "2018.05.05"]
[Round "8"]
[White "Medvegy, Nora Dr"]
[Black "Havanecz, Bianka"]
[Result "1-0"]
[ECO "C46"]
[WhiteElo "2354"]
[BlackElo "2197"]
[Annotator "NA"]
[PlyCount "47"]
[EventDate "2018.??.??"]
[EventType "team-tourn"]
[EventCountry "HUN"]
[SourceTitle "playchess.com"]
[Source "ChessBase"]
[SourceQuality "1"]
[TimeControl "40/5400+30:1800+30"]

1. e4 {[%emt 0:00:02]} e5 {[%emt 0:00:34]} 2. Nf3 {[%emt 0:00:09]} Nc6 {[%emt 0:00:05]} 3. Nc3 {[%emt 0:00:10]} g6 {[%emt 0:00:07]} 4. d4 {[%emt 0:01:12]} exd4 {[%emt 0:00:06]} 5. Nxd4 {[%emt 0:00:06]} Bg7 {[%emt 0:00:17]} 6. Be3 {[%emt 0:02:37]} Nge7 {[%emt 0:04:30]} 7. Qd2 {[%emt 0:03:59]} O-O {[%emt 0:00:28]} 8. O-O-O {[%emt 0:12:37]} d6 {[%emt 0:25:11]} 9. h4 {[%emt 0:03:43]} h5 {[%emt 0:03:24]} 10. f3 {[%emt 0:05:37]} Ne5 {[%emt 0:00:20]} 11. Be2 {[%emt 0:13:51]} a5 {[%emt 0:08:30]} 12. g4 {[%emt 0:03:59]} hxg4 {[%emt 0:00:25]} 13. f4 {[%emt 0:00:22]} N5c6 {[%emt 0:01:27]} 14. h5 {[%emt 0:08:56]} Nxd4 {[%emt 0:29:32]} 15. Bxd4 {[%emt 0:00:41]} Nc6 {[%emt 0:03:03]} 16. Bxg7 {[%emt 0:01:06]} Kxg7 {[%emt 0:00:02]} 17. hxg6 {[%emt 0:01:42]} fxg6 {[%emt 0:00:07]} 18. Nd5 {[%emt 0:00:46]} Rg8 {[%emt 0:05:38]} 19. Qc3+ {[%emt 0:04:29]} Kf8 {[%emt 0:00:06]} 20. Nf6 {[%emt 0:07:19]} Be6 {[%emt 0:00:27]} 21. Nxg8 {[%emt 0:01:08]} Bxg8 {[%emt 0:00:16]} 22. Rh8 {[%emt 0:02:56]} Nb4 {[%emt 0:01:39]} 23. Bc4 {[%emt 0:01:14]} d5 {[%emt 0:00:15]} 24. Rxd5 {[%emt 0:03:06]} 1-0